lending/lending_fUSD_20240911
["ID","MTS","AMOUNT","RATE_DAILY","PERIOD"]
[337766599,1726077032903,-691.6956,0.00014149,2]
[337766600,1726077032912,-674.94898,0.00014149,2]
[337766601,1726077032922,-2700.0,0.000142,5]
[337766602,1726077032931,-154.36238,0.00014207,2]
[337766603,1726077032941,-1000.0,0.00014221,2]
[337766604,1726077032950,-156.98,0.00014233,2]
[337766605,1726077032959,-3106.61778014,0.00014266,2]
[337766606,1726077032969,-3400.0,0.000143,5]
[337766607,1726077032979,-264.904698,0.00014323,2]
[337766608,1726077032989,-691.6956,0.00014323,2]
[337766609,1726077032999,-674.94898,0.00014323,2]
[337766610,1726077033008,-3106.61778014,0.00014392,2]
[337766611,1726077033017,-164.72161916,0.00014398,2]
[337766612,1726077033026,-600.0,0.000144,5]
[337766613,1726077033035,-154.36238,0.0001444,2]
[337766614,1726077033044,-532.52,0.00014466,2]
[337766615,1726077033054,-859.044,0.0001447,2]
[337766616,1726077033063,-246.823,0.0001447,2]
[337766617,1726077033072,-66856.5029458,0.0001449,2]
[337766618,1726077033081,-151.97,0.0001449,2]
[337766619,1726077033091,-264.904698,0.00014498,2]
[337766620,1726077033101,-691.6956,0.00014498,2]
[337766621,1726077033110,-674.94898,0.00014498,2]
[337766622,1726077033120,-300.0,0.00014499,2]
[337766623,1726077033130,-513.86335129,0.00014499,2]
[337766624,1726077033139,-500.0,0.00014499,2]
[337766625,1726077033149,-197696.46725311,0.000145,2]
[337766626,1726077037703,-1079.0,0.00013858,2]
[337766628,1726077037713,-1.68345125,0.000145,2]
[337766629,1726077037725,-393.01182328,0.000145,2]
[337766630,1726077037745,-21506.82599955,0.000145,2]
[337766631,1726077037755,-600.0,0.000145,5]
[337766632,1726077037764,-3106.61778014,0.00014519,2]
[337766633,1726077037774,-362.190813,0.00014521,2]
[337766634,1726077037783,-193.52,0.00014585,2]
[337766635,1726077037793,-600.0,0.000146,5]
[337766636,1726077037802,-1406.40969114,0.00014646,2]
[337766637,1726077037814,-777.16020434,0.00014646,2]
[337766638,1726077037829,-319.52537502,0.00014646,2]
[337766639,1726077037867,-603.52250964,0.00014646,2]
[337766640,1726077037876,-264.904698,0.00014673,2]
[337766641,1726077037886,-691.6956,0.00014673,2]
[337766642,1726077037895,-674.94898,0.00014673,2]
[337766643,1726077037903,-154.36238,0.00014673,2]
[337766644,1726077037916,-152.714662,0.00014673,2]
[337766645,1726077037925,-549.45117036,0.000147,5]
[337766646,1726077037939,-50.54882964,0.000147,5]
[337766647,1726077037948,-203.54,0.00014703,2]
[337766648,1726077037957,-1211.62887,0.0001475,2]
[337766649,1726077037966,-1000.20376064,0.00014751,2]
[337766650,1726077037978,-7214.73959698,0.00014751,2]
[337766655,1726077038114,-830.76722118,0.00014751,2]
[337766658,1726077038159,-4325.5900104,0.00014751,2]
[337766660,1726077038168,-3106.61778014,0.00014773,2]
[337766662,1726077038178,-4776.01481892,0.00014775,2]
[337766682,1726077039754,-6190.94118108,0.00014775,2]
[337766683,1726077039763,-150.0,0.00014789,2]
[337766684,1726077039773,-3000.0,0.000148,2]
[337766685,1726077039783,-1234.0,0.000148,5]
[337766686,1726077039792,-150.0,0.00014812,2]
[337766687,1726077039802,-150.0,0.00014814,2]
[337766688,1726077039811,-159.03531559,0.00014827,2]
[337766689,1726077039819,-214.0,0.0001483,2]
[337766690,1726077039829,-507.0885763,0.00014839,2]
[337766691,1726077039838,-10255.15649146,0.0001487,2]
[337766692,1726077039854,-701.66503495,0.0001487,2]
[337766693,1726077039865,-1209.49724686,0.0001487,2]
[337766694,1726077039877,-1204.98181593,0.0001487,2]
[337766695,1726077039886,-7500.0,0.0001488,2]
[337766696,1726077039896,-151.0,0.0001489,2]
[337766697,1726077039906,-155.790047,0.0001489,2]
[337766698,1726077039916,-151.0,0.0001489,2]
[337766699,1726077039926,-151.0,0.0001489,2]
[337766700,1726077039935,-151.0,0.0001489,2]
[337766701,1726077039945,-151.0,0.0001489,2]
[337766702,1726077039955,-5800.0,0.000149,2]
[337766703,1726077039964,-152.91,0.000149,31]
[337766704,1726077039975,-152.91,0.000149,31]
[337766705,1726077039985,-152.91,0.000149,31]
[337766706,1726077039996,-152.91,0.000149,31]
[337766707,1726077040006,-152.91,0.000149,31]
[337766708,1726077040015,-152.91,0.000149,31]
[337766709,1726077040025,-152.91,0.000149,31]
[337766710,1726077040035,-150.0,0.000149,2]
[337766711,1726077040045,-3106.61778014,0.000149,2]
[337766712,1726077040055,-509.162969,0.000149,2]
[337766713,1726077040066,-158.3176782,0.0001494,2]
[337766714,1726077040075,-13371.3005892,0.00014949,2]
[337766715,1726077040085,-6648.9567771,0.00014959,2]
[337766716,1726077040098,-6722.3438121,0.00014959,2]
[337766718,1726077040110,-6749.55313885,0.00014969,2]
[337766719,1726077040150,-6621.74745035,0.00014969,2]
[337766720,1726077040159,-13371.3005892,0.00014969,2]
[337766721,1726077040169,-21690.9085107,0.00014969,2]
[337766722,1726077040178,-26742.6011783,0.00014969,2]
[337766723,1726077040188,-21690.9085107,0.00014969,2]
[337766724,1726077040198,-13371.3005892,0.0001497,2]
[337766725,1726077040207,-21690.9085107,0.0001497,2]
[337766726,1726077040216,-17936.34376841,0.00014978,2]
[337766727,1726077040225,-147084.306481,0.00014978,2]
[337766728,1726077040234,-238599.993617,0.00014978,2]
[337766729,1726077040244,-771.0,0.00014979,2]
[337766730,1726077040253,-151.0,0.00014979,2]
[337766731,1726077040263,-202.364038,0.00014979,2]
[337766732,1726077040271,-202.364038,0.00014979,2]
[337766733,1726077040280,-258.215504,0.00014979,2]
[337766734,1726077040289,-227.696682,0.00014979,2]
[337766735,1726077040298,-406.628942,0.00014979,2]
[337766736,1726077040308,-570.804963,0.00014979,2]
[337766737,1726077040318,-406.628942,0.00014979,2]
[337766738,1726077040327,-151.0,0.00014979,2]
[337766739,1726077040337,-570.804963,0.00014979,2]
[337766740,1726077040346,-151.538148,0.00014979,2]
[337766741,1726077040355,-1326.308367,0.00014979,2]
[337766742,1726077040366,-1326.308367,0.00014979,2]
[337766743,1726077040375,-366.133411,0.00014979,2]
[337766744,1726077040384,-366.133411,0.00014979,2]
[337766745,1726077040394,-65072.725532,0.00014979,2]
[337766746,1726077040403,-158.3176782,0.00014979,2]
[337766747,1726077040413,-150.0,0.0001498,2]
[337766748,1726077040423,-21690.9085107,0.0001498,2]
[337766749,1726077040432,-564.63471654,0.0001498,2]
[337766750,1726077040441,-270.49700182,0.00014988,2]
[337766751,1726077040451,-493293.61639192,0.00014988,2]
[337766752,1726077040461,-151.0,0.00014988,2]
[337766753,1726077040471,-151.0,0.00014988,2]
[337766754,1726077040481,-151.0,0.00014988,2]
[337766755,1726077040493,-418.352538,0.00014988,2]
[337766756,1726077040502,-418.352538,0.00014988,2]
[337766757,1726077040512,-151.0,0.00014988,2]
[337766758,1726077040524,-414.272088,0.00014988,2]
[337766759,1726077040538,-414.272088,0.00014988,2]
[337766760,1726077040547,-235.959488,0.00014988,2]
[337766761,1726077040556,-151.0,0.00014988,2]
[337766762,1726077040565,-478.131155,0.00014988,2]
[337766763,1726077040576,-235.959488,0.00014988,2]
[337766764,1726077040585,-151.0,0.00014988,2]
[337766765,1726077040594,-478.131155,0.00014988,2]
[337766766,1726077040604,-153.910072,0.00014988,2]
[337766767,1726077040614,-151.0,0.00014988,2]
[337766768,1726077040624,-151.0,0.00014988,2]
[337766769,1726077040633,-151.0,0.00014988,2]
[337766770,1726077040642,-328.317376,0.00014988,2]
[337766771,1726077040652,-151.0,0.00014988,2]
[337766772,1726077040663,-328.317376,0.00014988,2]
[337766773,1726077040673,-151.0,0.00014988,2]
[337766774,1726077040682,-151.0,0.00014988,2]
[337766775,1726077040692,-815.045232,0.00014988,2]
[337766776,1726077040701,-815.045232,0.00014988,2]
[337766777,1726077040711,-151.0,0.00014988,2]
[337766778,1726077040721,-151.0,0.00014988,2]
[337766779,1726077040730,-151.0,0.00014988,2]
[337766780,1726077040739,-165.649187,0.00014988,2]
[337766781,1726077040749,-165.649187,0.00014988,2]
[337766782,1726077040759,-151.0,0.00014988,2]
[337766783,1726077040769,-151.0,0.00014988,2]
[337766784,1726077040779,-151.0,0.00014988,2]
[337766785,1726077040788,-202.364038,0.00014988,2]
[337766786,1726077040798,-202.364038,0.00014988,2]
[337766787,1726077040807,-406.628942,0.00014988,2]
[337766788,1726077040817,-570.804963,0.00014988,2]
[337766789,1726077040826,-406.628942,0.00014988,2]
[337766790,1726077040836,-151.0,0.00014988,2]
[337766791,1726077040845,-570.804963,0.00014988,2]
[337766792,1726077040855,-1326.308367,0.00014988,2]
[337766793,1726077040865,-1326.308367,0.00014988,2]
[337766794,1726077040874,-366.133411,0.00014988,2]
[337766795,1726077040883,-366.133411,0.00014988,2]
[337766796,1726077040893,-43381.8170214,0.00014989,2]
[337766797,1726077040902,-172.67487,0.00014989,2]
[337766798,1726077040914,-172.67487,0.00014989,2]
[337766799,1726077040931,-175.164649,0.00014989,2]
[337766800,1726077040941,-151.0,0.00014989,2]
[337766801,1726077040951,-175.164649,0.00014989,2]
[337766802,1726077040961,-151.0,0.00014989,2]
[337766803,1726077040970,-258.258694,0.00014989,2]
[337766804,1726077040980,-262.284708,0.00014989,2]
[337766805,1726077040990,-151.0,0.00014989,2]
[337766806,1726077040999,-262.284708,0.00014989,2]
[337766807,1726077041009,-151.0,0.00014989,2]
[337766808,1726077041020,-151.0,0.00014989,2]
[337766809,1726077041030,-151.0,0.00014989,2]
[337766810,1726077041040,-151.0,0.00014989,2]
[337766811,1726077041050,-151.0,0.00014989,2]
[337766812,1726077041060,-151.0,0.00014989,2]
[337766813,1726077041070,-1903.8773373,0.00014989,2]
[337766814,1726077041080,-1903.8773373,0.00014989,2]
[337766815,1726077041089,-1903.8773373,0.00014989,2]
[337766816,1726077041100,-1903.8773373,0.00014989,2]
[337766817,1726077041110,-1903.8773373,0.00014989,2]
[337766818,1726077041120,-1903.8773373,0.00014989,2]
[337766819,1726077041130,-201.096034,0.00014989,2]
[337766820,1726077041139,-201.096034,0.00014989,2]
[337766821,1726077041150,-151.0,0.00014989,2]
[337766822,1726077041161,-151.0,0.00014989,2]
[337766823,1726077041174,-826.2610291,0.00014989,2]
[337766824,1726077041186,-826.2610291,0.00014989,2]
[337766825,1726077041196,-826.2610291,0.00014989,2]
[337766826,1726077041206,-826.2610291,0.00014989,2]
[337766827,1726077041216,-826.2610291,0.00014989,2]
[337766828,1726077041225,-826.2610291,0.00014989,2]
[337766829,1726077041235,-290.152415,0.00014989,2]
[337766830,1726077041245,-290.152415,0.00014989,2]
[337766831,1726077041255,-151.0,0.00014989,2]
[337766832,1726077041265,-172.561314,0.00014989,2]
[337766833,1726077041275,-151.0,0.00014989,2]
[337766834,1726077041285,-172.561314,0.00014989,2]
[337766835,1726077041294,-151.0,0.00014989,2]
[337766836,1726077041303,-528.347544,0.00014989,2]
[337766837,1726077041312,-151.0,0.00014989,2]
[337766838,1726077041322,-528.347544,0.00014989,2]
[337766839,1726077041332,-1926.5517733,0.00014989,2]
[337766840,1726077041342,-1926.5517733,0.00014989,2]
[337766841,1726077041352,-1926.5517733,0.00014989,2]
[337766842,1726077041361,-1926.5517733,0.00014989,2]
[337766843,1726077041371,-1926.5517733,0.00014989,2]
[337766844,1726077041382,-1926.5517733,0.00014989,2]
[337766845,1726077041391,-151.0,0.00014989,2]
[337766846,1726077041401,-252.486047,0.00014989,2]
[337766847,1726077041414,-151.0,0.00014989,2]
[337766848,1726077041423,-252.486047,0.00014989,2]
[337766849,1726077041433,-4971.9805315,0.00014989,2]
[337766850,1726077041443,-4012.4773224,0.00014989,2]
[337766851,1726077041452,-3052.9741133,0.00014989,2]
[337766852,1726077041462,-2093.4709042,0.00014989,2]
[337766853,1726077041471,-1133.9676951,0.00014989,2]
[337766854,1726077041480,-174.464486,0.00014989,2]
[337766855,1726077041490,-165.918967,0.00014989,2]
[337766856,1726077041499,-3215.389354,0.00014989,2]
[337766857,1726077041508,-151.0,0.00014989,2]
[337766858,1726077041518,-3215.389354,0.00014989,2]
[337766859,1726077041527,-466.2780427,0.00014989,2]
[337766860,1726077041540,-1487.385898,0.00014989,2]
[337766861,1726077041550,-1487.385898,0.00014989,2]
[337766862,1726077041559,-249.526731,0.00014989,2]
[337766863,1726077041569,-198.622731,0.00014989,2]
[337766864,1726077041580,-249.526731,0.00014989,2]
[337766865,1726077041589,-198.622731,0.00014989,2]
[337766866,1726077041599,-265.96208,0.00014989,2]
[337766867,1726077041610,-151.0,0.00014989,2]
[337766868,1726077041619,-265.96208,0.00014989,2]
[337766869,1726077041629,-3000.0,0.00014989,2]
[337766870,1726077041784,-3000.0,0.00014989,2]
[337766871,1726077041796,-3000.0,0.00014989,2]
[337766872,1726077041805,-3000.0,0.00014989,2]
[337766873,1726077041815,-3000.0,0.00014989,2]
[337766874,1726077041824,-3000.0,0.00014989,2]
[337766875,1726077041834,-3000.0,0.00014989,2]
[337766876,1726077041844,-3000.0,0.00014989,2]
[337766877,1726077041853,-3000.0,0.00014989,2]
[337766878,1726077041862,-3000.0,0.00014989,2]
[337766879,1726077041871,-3000.0,0.00014989,2]
[337766880,1726077041881,-3000.0,0.00014989,2]
[337766881,1726077041891,-3000.0,0.00014989,2]
[337766882,1726077041900,-3000.0,0.00014989,2]
[337766883,1726077041911,-3000.0,0.00014989,2]
[337766884,1726077041920,-3000.0,0.00014989,2]
[337766885,1726077041930,-1956.66573069,0.00014989,2]
[337766886,1726077041939,-86763.6340427,0.00014989,2]
[337766887,1726077041949,-199.88289575,0.0001499,2]
[337766888,1726077041958,-201.0,0.0001499,2]
[337766889,1726077041968,-208.0,0.0001499,2]
[337766890,1726077041977,-213.0,0.0001499,2]
[337766891,1726077041986,-213.0,0.0001499,2]
[337766892,1726077041995,-213.0,0.0001499,2]
[337766893,1726077042004,-1500.0,0.0001499,15]
[337766894,1726077042014,-214.0,0.0001499,2]
[337766895,1726077042023,-203.0,0.0001499,2]
[337766896,1726077042033,-262.284708,0.0001499,2]
[337766897,1726077042042,-151.0,0.0001499,2]
[337766898,1726077042051,-262.284708,0.0001499,2]
[337766899,1726077042060,-151.0,0.0001499,2]
[337766900,1726077042070,-151.0,0.0001499,2]
[337766901,1726077042079,-151.0,0.0001499,2]
[337766902,1726077042089,-151.0,0.0001499,2]
[337766903,1726077042098,-171.471424,0.0001499,2]
[337766904,1726077042108,-151.0,0.0001499,2]
[337766905,1726077042117,-201.096034,0.0001499,2]
[337766906,1726077042127,-201.096034,0.0001499,2]
[337766907,1726077042136,-151.0,0.0001499,2]
[337766908,1726077042145,-151.0,0.0001499,2]
[337766909,1726077042155,-290.152415,0.0001499,2]
[337766910,1726077042165,-290.152415,0.0001499,2]
[337766911,1726077042174,-151.0,0.0001499,2]
[337766912,1726077042185,-172.561314,0.0001499,2]
[337766913,1726077042194,-151.0,0.0001499,2]
[337766914,1726077042204,-172.561314,0.0001499,2]
[337766915,1726077042214,-151.0,0.0001499,2]
[337766916,1726077042224,-528.347544,0.0001499,2]
[337766917,1726077042233,-151.0,0.0001499,2]
[337766918,1726077042242,-528.347544,0.0001499,2]
[337766919,1726077042252,-151.0,0.0001499,2]
[337766920,1726077042261,-252.486047,0.0001499,2]
[337766921,1726077042271,-151.0,0.0001499,2]
[337766922,1726077042280,-252.486047,0.0001499,2]
[337766923,1726077042290,-3215.389354,0.0001499,2]
[337766924,1726077042299,-3215.389354,0.0001499,2]
[337766925,1726077042309,-1487.385898,0.0001499,2]
[337766926,1726077042318,-1487.385898,0.0001499,2]
[337766927,1726077042328,-198.622731,0.0001499,2]
[337766928,1726077042337,-249.526731,0.0001499,2]
[337766929,1726077042347,-249.526731,0.0001499,2]
[337766930,1726077042356,-198.622731,0.0001499,2]
[337766931,1726077042366,-265.96208,0.0001499,2]
[337766932,1726077042375,-151.0,0.0001499,2]
[337766933,1726077042384,-265.96208,0.0001499,2]
[337766934,1726077042394,-151.0,0.0001499,2]
[337766935,1726077042403,-202.364038,0.0001499,2]
[337766936,1726077042412,-202.364038,0.0001499,2]
[337766937,1726077042421,-406.628942,0.0001499,2]
[337766938,1726077042430,-570.804963,0.0001499,2]
[337766939,1726077042439,-151.0,0.0001499,2]
[337766940,1726077042448,-158.3176782,0.0001499,2]
[337766941,1726077042458,-151.97,0.0001499,2]
[337766942,1726077042467,-151.97,0.0001499,2]
[337766943,1726077042477,-406.628942,0.0001499,2]
[337766944,1726077042486,-570.804963,0.0001499,2]
[337766945,1726077042495,-1326.308367,0.0001499,2]
[337766946,1726077042505,-1326.308367,0.0001499,2]
[337766947,1726077042514,-366.133411,0.0001499,2]
[337766948,1726077042524,-366.133411,0.0001499,2]
[337766949,1726077042535,-305656.66354615,0.00014999,2]
[337766950,1726077042545,-107646.26982519,0.00014999,2]
[337766952,1726077042554,-151.0,0.00014999,2]
[337766953,1726077042563,-151.0,0.00014999,2]
[337766955,1726077042574,-151.0,0.00014999,2]
[337766956,1726077042583,-281.012001,0.00014999,2]
[337766957,1726077042593,-281.012001,0.00014999,2]
[337766958,1726077042603,-278.998094,0.00014999,2]
[337766959,1726077042614,-151.0,0.00014999,2]
[337766960,1726077042624,-278.998094,0.00014999,2]
[337766961,1726077042634,-151.0,0.00014999,2]
[337766962,1726077042644,-151.0,0.00014999,2]
[337766963,1726077042654,-404.905491,0.00014999,2]
[337766964,1726077042664,-151.0,0.00014999,2]
[337766965,1726077042674,-404.905491,0.00014999,2]
[337766966,1726077042684,-151.0,0.00014999,2]
[337766967,1726077042694,-151.0,0.00014999,2]
[337766969,1726077042703,-302.397502,0.00014999,2]
[337766972,1726077042713,-302.397502,0.00014999,2]
[337766973,1726077042722,-151.0,0.00014999,2]
[337766975,1726077042731,-151.0,0.00014999,2]
[337766977,1726077042740,-151.0,0.00014999,2]
[337766978,1726077042750,-151.0,0.00014999,2]
[337766979,1726077042759,-151.0,0.00014999,2]
[337766980,1726077042768,-205.670378,0.00014999,2]
[337766981,1726077042778,-151.0,0.00014999,2]
[337766982,1726077042787,-205.670378,0.00014999,2]
[337766983,1726077042796,-151.0,0.00014999,2]
[337766984,1726077042806,-151.0,0.00014999,2]
[337766985,1726077042816,-151.0,0.00014999,2]
[337766986,1726077042825,-414.272088,0.00014999,2]
[337766987,1726077042835,-414.272088,0.00014999,2]
[337766988,1726077042845,-235.959488,0.00014999,2]
[337766989,1726077042854,-151.555404,0.00014999,2]
[337766990,1726077042864,-478.131155,0.00014999,2]
[337766991,1726077042874,-235.959488,0.00014999,2]
[337766992,1726077042883,-151.0,0.00014999,2]
[337766993,1726077042893,-478.131155,0.00014999,2]
[337766994,1726077042902,-151.0,0.00014999,2]
[337766995,1726077042913,-151.0,0.00014999,2]
[337766996,1726077042930,-151.0,0.00014999,2]
[337766997,1726077042940,-328.317376,0.00014999,2]
[337766998,1726077042949,-151.0,0.00014999,2]
[337766999,1726077042959,-328.317376,0.00014999,2]
[337767000,1726077042968,-151.0,0.00014999,2]
[337767001,1726077042977,-151.0,0.00014999,2]
[337767002,1726077042986,-151.0,0.00014999,2]
[337767003,1726077042996,-151.0,0.00014999,2]
[337767004,1726077043006,-165.649187,0.00014999,2]
[337767005,1726077043015,-165.649187,0.00014999,2]
[337767006,1726077043025,-151.0,0.00014999,2]
[337767007,1726077043034,-1861637.03362701,0.00015,2]
[337767008,1726077043050,-870.608456,0.00015,2]
[337767009,1726077043554,-151.0,0.00014979,2]
[337767010,1726077043563,-151.0,0.00014988,2]
[337767011,1726077043573,-40.3109554,0.0001499,2]
[337767013,1726077045800,-593.72795159,0.0001438,2]
[337767027,1726077648159,200.25,0.00012,2]
[337767028,1726077752578,157.85,0.00010959,2]
[337767029,1726077824650,371.8,0.00011919,2]
[337767041,1726078237934,-152.0,0.00013062,3]
[337767042,1726078237944,-214.37,0.00013747,2]
[337767043,1726078237954,-300.0,0.00013757,2]
[337767044,1726078237963,-238.55921906,0.00013758,2]
[337767052,1726078240239,-71805.57558094,0.00013758,2]
[337767053,1726078240248,-2500.2569,0.00013758,2]
[337767054,1726078240257,-1096.13,0.00013762,2]
[337767055,1726078240266,-3964.15,0.00013835,2]
[337767056,1726078240276,-250.0,0.00013835,2]
[337767057,1726078240285,-193.53,0.00013835,2]
[337767058,1726078240294,-250.0,0.00013857,2]
[337767059,1726078240303,-347.011,0.00013888,2]
[337767060,1726078240312,-279.036,0.00013888,2]
[337767061,1726078240321,-784.884,0.00013888,2]
[337767062,1726078240330,-1920.0,0.00013888,2]
[337767064,1726078240339,-5860.0,0.00013888,2]
[337767065,1726078240350,-150.0,0.00013888,2]
[337767067,1726078240359,-235.058,0.00013888,2]
[337767069,1726078240369,-1079.0,0.00013888,2]
[337767071,1726078240378,-1000.0,0.00013899,2]
[337767073,1726078240387,-183.879101,0.00013974,2]
[337767075,1726078240396,-445.0,0.00013988,2]
[337767076,1726078240405,-1131.163,0.00013988,2]
[337767077,1726078240414,-931.0,0.00013988,2]
[337767078,1726078240423,-810.0,0.00013988,2]
[337767079,1726078240432,-557.0,0.00013988,2]
[337767080,1726078240442,-1901.0,0.00013988,2]
[337767081,1726078240451,-552.0,0.00013988,2]
[337767082,1726078240460,-499.99,0.00013988,2]
[337767083,1726078240469,-371.8,0.00014183,2]
[337767084,1726078240478,-161.73,0.00014303,2]
[337767085,1726078240488,-283.88,0.00014345,2]
[337767086,1726078240497,-687.235,0.00014566,2]
[337767087,1726078240733,-197.458,0.00014566,2]
[337767088,1726078240743,-243.10509471,0.00014722,2]
[337767089,1726078240753,-325.971732,0.00014795,2]
[337767090,1726078240762,-1500.0,0.000148,2]
[337767091,1726078240772,-27662.2422,0.0001489,2]
[337767092,1726078240782,-1004.3309,0.000149,2]
[337767093,1726078240792,-2334.39,0.000149,2]
[337767094,1726078240802,-394.40143511,0.000149,2]
[337767095,1726078240811,-150.0,0.000149,2]
[337767096,1726078240820,-333.75235192,0.000149,2]
[337767097,1726078240830,-152.93,0.000149,31]
[337767098,1726078240839,-152.93,0.000149,31]
[337767099,1726078240849,-152.93,0.000149,31]
[337767100,1726078240858,-152.93,0.000149,31]
[337767101,1726078240867,-152.93,0.000149,31]
[337767102,1726078240876,-152.93,0.000149,31]
[337767103,1726078240886,-152.93,0.000149,31]
[337767104,1726078240895,-150.0,0.000149,2]
[337767105,1726078240905,-380.31317064,0.000149,2]
[337767106,1726078240918,-5347.99265169,0.00014978,2]
[337767107,1726078240927,-151.0,0.00014979,2]
[337767108,1726078240938,-151.0,0.00014979,2]
[337767109,1726078240947,-151.0,0.00014979,2]
[337767110,1726078240958,-151.0,0.00014979,2]
[337767111,1726078240967,-151.0,0.00014979,2]
[337767112,1726078240976,-151.0,0.00014979,2]
[337767113,1726078240987,-151.0,0.00014979,2]
[337767114,1726078240996,-23176.9210212,0.0001498,2]
[337767115,1726078241007,-151.0,0.00014988,2]
[337767116,1726078241016,-151.0,0.00014988,2]
[337767117,1726078241027,-159.011532,0.00014988,2]
[337767118,1726078241037,-151.0,0.00014988,2]
[337767119,1726078241047,-151.0,0.00014988,2]
[337767120,1726078241057,-151.0,0.00014988,2]
[337767121,1726078241066,-151.0,0.00014988,2]
[337767122,1726078241076,-2026.8,0.00014989,2]
[337767123,1726078241085,-69530.7630636,0.0001499,2]
[337767124,1726078241095,-110.6890446,0.0001499,2]
[337767125,1726078241105,-218.314824,0.0001499,2]
[337767126,1726078241114,-151.0,0.0001499,2]
[337767127,1726078241124,-151.0,0.0001499,2]
[337767128,1726078241133,-151.0,0.0001499,2]
[337767129,1726078241143,-151.0,0.0001499,2]
[337767130,1726078241152,-151.0,0.0001499,2]
[337767131,1726078241161,-208592.289191,0.0001499,2]
[337767132,1726078241170,-471668.077683,0.0001499,2]
[337767133,1726078241180,-692.0,0.00014999,2]
[337767134,1726078241190,-376.44196551,0.00015,2]
[337767135,1726078241199,-180.34035112,0.00015,2]
[337767136,1726078241208,-14349.4337416,0.00015,2]
[337767137,1726078241218,-152828.33177308,0.00015,2]
[337767138,1726078241228,-5438408.02867854,0.00015,2]
[337767142,1726078270579,500.0,0.00011164,2]
[337767143,1726078300609,203.87,0.00010959,2]
[337767144,1726078508776,334.62,0.00011904,2]
[337767147,1726079138226,342.91,0.00011648,2]
[337767163,1726079432138,-164.49,0.00012757,2]
[337767164,1726079432147,-2095.87770219,0.00012767,2]
[337767165,1726079432157,-237.13599943,0.0001277,2]
[337767167,1726079432172,-1858.74170276,0.0001277,2]
[337767169,1726079432181,-2095.87770219,0.00012772,2]
[337767171,1726079432191,-150.43,0.00012863,2]
[337767172,1726079432200,-150.43,0.00012867,2]
[337767173,1726079432209,-150.43,0.00012872,2]
[337767174,1726079432219,-150.43,0.00012877,2]
[337767175,1726079432229,-150.43,0.00012881,2]
[337767176,1726079432238,-150.43,0.00012886,2]
[337767177,1726079432247,-164.49,0.00012889,2]
[337767178,1726079432257,-150.43,0.0001289,2]
[337767179,1726079432267,-150.43,0.00012895,2]
[337767180,1726079432276,-150.43,0.000129,2]
[337767181,1726079432286,-499.99,0.00012904,2]
[337767182,1726079432298,-150.43,0.00012904,2]
[337767183,1726079432311,-150.43,0.00012909,2]
[337767184,1726079432320,-150.43,0.00012913,2]
[337767185,1726079432330,-150.43,0.00012918,2]
[337767186,1726079432339,-150.43,0.00012923,2]
[337767187,1726079432349,-150.43,0.00012927,2]
[337767188,1726079432358,-1505.04,0.00012993,2]
[337767189,1726079432368,-393.387322,0.00012998,2]
[337767190,1726079432377,-2000.0,0.0001312,2]
[337767191,1726079432387,-314.8334,0.00013165,2]
[337767192,1726079432396,-150.0,0.00013365,2]
[337767193,1726079432405,-1208.78877838,0.00013365,2]
[337767194,1726079432414,-164.49,0.00013382,2]
[337767195,1726079432424,-164.49,0.00013382,2]